{"text_format":"3","workbook":"xlsx","n_sheets":3,"sheets":["Aloitus","Kuukausitt. opiskelubudjetti","kaavio_lask"],"not_rendered":{"charts":4,"defined_names":19},"read":"whole","date_system":"1900"}

{"sheet":"Aloitus","index":0,"n_rows":7,"n_cols":2,"rows_kept":7}
[null,"TIETOJA TÄSTÄ MALLISTA"]
[null,"Kuukausittainen opiskelubudjetti -laskentataulukon avulla voit seurata tuloja, menoja ja kassavirtaa."]
[null,"Kirjoita kuukausittaiset tulot ja menot tulojen ja menojen yhteissummien laskemiseksi."]
[null,"Kassavirta lasketaan ja kassavirtakaavio päivitetään automaattisesti."]
[null,"Liukusäätimellä näet kuukauden ja vuoden tulot, menot ja kassavirtakaavion."]
[null,"Huomautus: "]
[null,"Laskentataulukon sarakkeessa A annetaan lisäohjeita. Tämä teksti on piilotettu tarkoituksella. Jos haluat poistaa tekstin, valitse sarake A ja valitse sitten POISTA. Jos haluat tuoda tekstin näkyviin, valitse sarake A ja muuta sitten fonttiväriä."]

{"sheet":"Kuukausitt. opiskelubudjetti","index":1,"n_rows":72,"n_cols":16,"rows_kept":72,"merged":[[5,1,14,3],[5,4,14,11],[5,12,13,15],[15,1,19,15],[20,1,21,15]]}
["Luo kuukausittainen opiskelubudjetti tähän laskentataulukkoon. Tämän laskentataulukon otsikko on oikealla olevassa solussa ja solussa B1. Tämän sarakkeen soluissa on hyödyllisiä ohjeita tämän laskentataulukon käyttöön. Seuraava ohje on solussa A4.","Kuukausittainen opiskelubudjetti"]
[]
[]
["Tulot-otsikko on solussa oikealla, Menot-otsikko solussa E4 ja Kassavirta-otsikko solussa M4.",{"$f":"kaavio_lask!$D$6","v":"vuosi tulot:"},null,null,{"$f":"kaavio_lask!$D$7","v":"vuosi kulut:"},{"$nulls":7},{"$f":"kaavio_lask!$D$8","v":"vuosi kassavirta:"}]
["Tulot päivitetään automaattisesti oikealla olevaan soluun, menot soluun E5 ja kassavirta soluun M5.",{"$f":"\" \"&kaavio_lask!$F$6","v":{"$error":"#VALUE!"}},null,null,{"$f":"\" \"&kaavio_lask!$F$7","v":{"$error":"#VALUE!"}},{"$nulls":7},{"$f":"\" \"&kaavio_lask!$F$8","v":" 169 €"}]
["Oikealla olevan solun tulojen yhteenvedon näyttävä rengaskaavio, kulujen yhteenveto solussa E6 ja positiivisen ja negatiivisen kassavirran näyttävä palkkikaavio solussa M6 päivitetään automaattisesti. Seuraava ohje on solussa A17.","Tässä solussa on rengaskaavio, joka näyttää yhteenvedon valitun kuukauden tai vuoden tuloista.",null,null,"Tässä solussa on rengaskaavio, joka näyttää yhteenvedon valitun kuukauden tai vuoden kuluista.",{"$nulls":7},"Tässä solussa on palkkikaavio, joka näyttää valitun kuukauden tai vuoden positiivisen ja negatiivisen kassavirran."]
{"$rows_empty":9}
[null,"Tässä solussa on viivakaavio, joka näyttää valitun kuukauden tai vuoden kassavirran."]
["Kassavirta kuvaava viivakaavio on solussa oikealla. Seuraava ohje on solussa A21."]
[]
[]
[]
["Oikealla olevalla liukusäätimellä näet tietoa ja kaavioita vuosittaisista tuloista, menoista ja kassavirrasta. Seuraava ohje on solussa A25.","Tässä solussa on liukusäädin."]
[]
[]
[]
["Valitse Kuukausi solussa oikealla. Avaa asetukset painamalla Alt+alanuoli ja tee sitten valinta painamalla alanuoli- ja Enter-näppäimiä.","TAMMI"]
["Valittu kausi päivitetään automaattisesti soluun P26.",{"$nulls":14},{"$f":"Valittu_jakso","v":{"$error":"#VALUE!"}}]
["Selitteet ovat tällä rivillä, Kuukausittaiset kassavarat menojen jälkeen -otsikko solussa oikealla, kuukaudet soluissa C27–N27, vuosi solussa O27 ja kasvuprosentti solussa P27.","Kuukausittaiset kassavarat menojen jälkeen",{"$f":"Ensimmäinen_kuukausi","v":{"$error":"#VALUE!"}},{"$f":"Seuraava_kuukausi","v":{"$error":"#VALUE!"}},{"$error":"#VALUE!"},{"$error":"#VALUE!"},{"$error":"#VALUE!"},{"$error":"#VALUE!"},{"$error":"#VALUE!"},{"$error":"#VALUE!"},{"$error":"#VALUE!"},{"$error":"#VALUE!"},{"$error":"#VALUE!"},{"$error":"#VALUE!"},"VUOSI  ","KASVU (%) "]
["Kassavirta-otsikko on solussa oikealla. Kuukausittainen kassavirta lasketaan automaattisesti soluihin C28–N28, vuosittainen soluun O28 ja kasvu prosentteina soluun P28. Sparkline-kaavio päivittyy automaattisesti soluun Q28.","Kassavirta",{"$f":"C37-C72","v":169},69,192,199,204,{"v":-771,"d":"-771 "},124,154,{"v":-721,"d":"-721 "},109,34,{"v":-61,"d":"-61 "},{"$f":"SUM(C28:N28)","v":{"v":-299,"d":"-299 "}},{"$f":"INDEX($C28:$O28,,Valittu_jakso_sarake)/INDEX($C$37:$O$37,,Valittu_jakso_sarake)","v":{"$error":"#VALUE!"}}]
["Kumulatiivinen kassavirta -otsikko on solussa oikealla. Kuukausittainen kumulatiivinen kassavirta lasketaan automaattisesti soluihin C29–N29, vuosittainen soluun O29 ja kasvu prosentteina soluun P29. Sparkline-kaavio päivittyy automaattisesti soluun Q29. Seuraava ohje on solussa A31.","Kumulatiivinen kassavirta",{"$f":"SUM($C$28:C$28)","v":169},{"$f":"SUM($C$28:D$28)","v":238},{"$f":"SUM($C$28:E$28)","v":430},{"$f":"SUM($C$28:F$28)","v":629},{"$f":"SUM($C$28:G$28)","v":833},{"$f":"SUM($C$28:H$28)","v":62},{"$f":"SUM($C$28:I$28)","v":186},{"$f":"SUM($C$28:J$28)","v":340},{"$f":"SUM($C$28:K$28)","v":{"v":-381,"d":"-381 "}},{"$f":"SUM($C$28:L$28)","v":{"v":-272,"d":"-272 "}},{"$f":"SUM($C$28:M$28)","v":{"v":-238,"d":"-238 "}},{"$f":"SUM($C$28:N$28)","v":{"v":-299,"d":"-299 "}}]
[]
["Kuukausitulot -otsikko on solussa oikealla, kuukaudet soluissa C31–N31, Vuosi-otsikko solussa O31 ja Kasvu prosentteina -otsikko solussa P31. Kirjoita kuukausitulojen lähde soluihin B32–B36 ja kuukausittaiset summat soluihin C32–N36. Vuositulot lasketaan automaattisesti soluihin O32–O36 ja kasvu prosentteina soluihin P32–P36. Seuraava ohje on solussa A37.","KUUKAUSITULOT",{"$f":"Ensimmäinen_kuukausi","v":{"$error":"#VALUE!"}},{"$f":"Seuraava_kuukausi","v":{"$error":"#VALUE!"}},{"$error":"#VALUE!"},{"$error":"#VALUE!"},{"$error":"#VALUE!"},{"$error":"#VALUE!"},{"$error":"#VALUE!"},{"$error":"#VALUE!"},{"$error":"#VALUE!"},{"$error":"#VALUE!"},{"$error":"#VALUE!"},{"$error":"#VALUE!"},"VUOSI  ","KASVU (%) "]
[null,"Sinulla maksettavat tuet (avustukset, apurahat, lainat)",0,0,750,750,750,750,750,750,750,750,750,750,{"$f":"SUM(C32:N32)","v":{"v":7500,"d":"7,500"}},{"$f":"INDEX($C32:$O32,,Valittu_jakso_sarake)/INDEX($C$37:$O$37,,Valittu_jakso_sarake)","v":{"$error":"#VALUE!"}}]
[null,"Palkat työstä verojen jälkeen",450,450,450,450,450,450,450,450,550,350,350,350,{"v":5200,"d":"5,200"},{"$f":"INDEX($C33:$O33,,Valittu_jakso_sarake)/INDEX($C$37:$O$37,,Valittu_jakso_sarake)","v":{"$error":"#VALUE!"}}]
[null,"Perheen antama taloudellinen tuki",200,200,{"v":1000,"d":"1,000"},350,350,350,350,350,350,350,350,350,{"v":4550,"d":"4,550"},{"$f":"INDEX($C34:$O34,,Valittu_jakso_sarake)/INDEX($C$37:$O$37,,Valittu_jakso_sarake)","v":{"$error":"#VALUE!"}}]
[null,"Nostot säästöistä",500,350,150,0,0,0,0,0,0,0,0,0,{"v":1000,"d":"1,000"},{"$f":"INDEX($C35:$O35,,Valittu_jakso_sarake)/INDEX($C$37:$O$37,,Valittu_jakso_sarake)","v":{"$error":"#VALUE!"}}]
[null,"Muut (lapsilisät, julkinen avustus, lahjat jne.)",75,75,75,75,75,75,75,75,75,75,75,75,900,{"$f":"INDEX($C36:$O36,,Valittu_jakso_sarake)/INDEX($C$37:$O$37,,Valittu_jakso_sarake)","v":{"$error":"#VALUE!"}}]
["Tulot yhteensä-otsikko on solussa oikealla. Kuukauden tulot yhteensä lasketaan automaattisesti soluihin C37–N37, vuosittaiset tulot soluun O37 ja kasvu prosentteina soluun P37. Sparkline-kaavio päivittyy solussa Q37. Seuraava ohje on solussa A39.","TULOT YHTEENSÄ",{"$f":"SUM(C32:C36)","v":{"v":1225,"d":"1,225"}},{"v":1075,"d":"1,075"},{"v":2425,"d":"2,425"},{"v":1625,"d":"1,625"},{"v":1625,"d":"1,625"},{"v":1625,"d":"1,625"},{"v":1625,"d":"1,625"},{"v":1625,"d":"1,625"},{"v":1725,"d":"1,725"},{"v":1525,"d":"1,525"},{"v":1525,"d":"1,525"},{"v":1525,"d":"1,525"},{"v":19150,"d":"19,150"},{"$f":"INDEX($C37:$O37,,Valittu_jakso_sarake)/INDEX($C$37:$O$37,,Valittu_jakso_sarake)","v":{"$error":"#VALUE!"}}]
[]
["Kuukausikulut -otsikko on solussa oikealla, kuukaudet soluissa C39–N39, Vuosi-otsikko solussa O39 ja Kasvu prosentteina -otsikko solussa P39.","KUUKAUSIKULUT",{"$f":"Ensimmäinen_kuukausi","v":{"$error":"#VALUE!"}},{"$f":"Seuraava_kuukausi","v":{"$error":"#VALUE!"}},{"$error":"#VALUE!"},{"$error":"#VALUE!"},{"$error":"#VALUE!"},{"$error":"#VALUE!"},{"$error":"#VALUE!"},{"$error":"#VALUE!"},{"$error":"#VALUE!"},{"$error":"#VALUE!"},{"$error":"#VALUE!"},{"$error":"#VALUE!"},"VUOSI  ","KASVU (%) "]
["Kirjoita kulukohde oikealla olevaan soluun ja kuukausittaiset summat soluihin C40–N43. Vuosittaiset summat lasketaan automaattisesti soluihin O40–O43 ja kasvu prosentteina soluihin P40–P43. Sparkline-kaavio päivittyy solussa Q40. Seuraava ohje on solussa A45.","Ruoka ja asuminen",{"$f":"SUM(C41:C43)","v":565},565,565,565,565,565,565,565,565,565,565,565,{"$f":"SUM(C40:N40)","v":{"v":6780,"d":"6,780"}},{"$f":"INDEX($C40:$O40,,Valittu_jakso_sarake)/INDEX($C$72:$O$72,,Valittu_jakso_sarake)","v":{"$error":"#VALUE!"}}]
[null,null,315,315,315,315,315,315,315,315,315,315,315,315,{"$f":"SUM(C41:N41)","v":{"v":3780,"d":"3,780"}},{"$f":"INDEX($C41:$O41,,Valittu_jakso_sarake)/INDEX($C$72:$O$72,,Valittu_jakso_sarake)","v":{"$error":"#VALUE!"}}]
[null,null,200,200,200,200,200,200,200,200,200,200,200,200,{"$f":"SUM(C42:N42)","v":{"v":2400,"d":"2,400"}},{"$f":"INDEX($C42:$O42,,Valittu_jakso_sarake)/INDEX($C$72:$O$72,,Valittu_jakso_sarake)","v":{"$error":"#VALUE!"}}]
[null,null,50,50,50,50,50,50,50,50,50,50,50,50,{"$f":"SUM(C43:N43)","v":600},{"$f":"INDEX($C43:$O43,,Valittu_jakso_sarake)/INDEX($C$72:$O$72,,Valittu_jakso_sarake)","v":{"$error":"#VALUE!"}}]
[]
["Kirjoita kulukohde oikealla olevaan soluun ja kuukausittaiset summat soluihin C45–N47. Vuosittaiset summat lasketaan automaattisesti soluihin O45–O47 ja kasvu prosentteina soluihin P45–P47. Sparkline-kaavio päivittyy solussa Q45. Seuraava ohje on solussa A49.","Opintomaksut",{"$f":"SUM(C46:C47)","v":0},0,750,0,0,650,0,0,650,0,0,0,{"$f":"SUM(C45:N45)","v":{"v":2050,"d":"2,050"}},{"$f":"INDEX($C45:$O45,,Valittu_jakso_sarake)/INDEX($C$72:$O$72,,Valittu_jakso_sarake)","v":{"$error":"#VALUE!"}}]
[null,null,0,0,500,0,0,500,0,0,500,0,0,0,{"$f":"SUM(C46:N46)","v":{"v":1500,"d":"1,500"}},{"$f":"INDEX($C46:$O46,,Valittu_jakso_sarake)/INDEX($C$72:$O$72,,Valittu_jakso_sarake)","v":{"$error":"#VALUE!"}}]
[null,null,0,0,250,0,0,150,0,0,150,0,0,0,{"$f":"SUM(C47:N47)","v":550},{"$f":"INDEX($C47:$O47,,Valittu_jakso_sarake)/INDEX($C$72:$O$72,,Valittu_jakso_sarake)","v":{"$error":"#VALUE!"}}]
[]
["Kirjoita kulukohde oikealla olevaan soluun ja kuukausittaiset summat soluihin C49–N51. Vuosittaiset summat lasketaan automaattisesti soluihin O49–O51 ja kasvu prosentteina soluihin P49–P51. Sparkline-kaavio päivittyy solussa Q49. Seuraava ohje on solussa A53.","Kirjat ja tarvikkeet",{"$f":"SUM(C50:C51)","v":0},0,325,20,20,325,10,10,400,15,15,15,{"$f":"SUM(C49:N49)","v":{"v":1155,"d":"1,155"}},{"$f":"INDEX($C49:$O49,,Valittu_jakso_sarake)/INDEX($C$72:$O$72,,Valittu_jakso_sarake)","v":{"$error":"#VALUE!"}}]
[null,null,0,0,225,0,0,275,0,0,325,0,0,0,{"$f":"SUM(C50:N50)","v":825},{"$f":"INDEX($C50:$O50,,Valittu_jakso_sarake)/INDEX($C$72:$O$72,,Valittu_jakso_sarake)","v":{"$error":"#VALUE!"}}]
[null,null,0,0,100,20,20,50,10,10,75,15,15,15,{"$f":"SUM(C51:N51)","v":330},{"$f":"INDEX($C51:$O51,,Valittu_jakso_sarake)/INDEX($C$72:$O$72,,Valittu_jakso_sarake)","v":{"$error":"#VALUE!"}}]
[]
["Kirjoita kulukohde oikealla olevaan soluun ja kuukausittaiset summat soluihin C53–N57. Vuosittaiset summat lasketaan automaattisesti soluihin O53–O57 ja kasvu prosentteina soluihin P53–P57. Sparkline-kaavio päivittyy solussa Q53. Seuraava ohje on solussa A59.","Liikenne",{"$f":"SUM(C54:C57)","v":224},174,174,219,174,174,274,219,174,174,224,269,{"$f":"SUM(C53:N53)","v":{"v":2473,"d":"2,473"}},{"$f":"INDEX($C53:$O53,,Valittu_jakso_sarake)/INDEX($C$72:$O$72,,Valittu_jakso_sarake)","v":{"$error":"#VALUE!"}}]
[null,null,30,30,30,75,30,30,30,75,30,30,30,75,{"$f":"SUM(C54:N54)","v":495},{"$f":"INDEX($C54:$O54,,Valittu_jakso_sarake)/INDEX($C$72:$O$72,,Valittu_jakso_sarake)","v":{"$error":"#VALUE!"}}]
[null,null,129,129,129,129,129,129,129,129,129,129,129,129,{"$f":"SUM(C55:N55)","v":{"v":1548,"d":"1,548"}},{"$f":"INDEX($C55:$O55,,Valittu_jakso_sarake)/INDEX($C$72:$O$72,,Valittu_jakso_sarake)","v":{"$error":"#VALUE!"}}]
[null,null,15,15,15,15,15,15,15,15,15,15,15,15,{"$f":"SUM(C56:N56)","v":180},{"$f":"INDEX($C56:$O56,,Valittu_jakso_sarake)/INDEX($C$72:$O$72,,Valittu_jakso_sarake)","v":{"$error":"#VALUE!"}}]
[null,null,50,0,0,0,0,0,100,0,0,0,50,50,{"$f":"SUM(C57:N57)","v":250},{"$f":"INDEX($C57:$O57,,Valittu_jakso_sarake)/INDEX($C$72:$O$72,,Valittu_jakso_sarake)","v":{"$error":"#VALUE!"}}]
[]
["Kirjoita kulukohde oikealla olevaan soluun ja kuukausittaiset summat soluihin C59–N65. Vuosittaiset summat lasketaan automaattisesti soluihin O59–O65 ja kasvu prosentteina soluihin P59–P65. Sparkline-kaavio päivittyy solussa Q59. Seuraava ohje on solussa A67.","Harkinnanvaraiset",{"$f":"SUM(C60:C65)","v":69},69,169,369,419,444,419,419,394,394,419,469,{"$f":"SUM(C59:N59)","v":{"v":4053,"d":"4,053"}},{"$f":"INDEX($C59:$O59,,Valittu_jakso_sarake)/INDEX($C$72:$O$72,,Valittu_jakso_sarake)","v":{"$error":"#VALUE!"}}]
[null,null,0,0,0,50,100,100,100,100,75,75,100,100,800,{"$f":"INDEX($C60:$O60,,Valittu_jakso_sarake)/INDEX($C$72:$O$72,,Valittu_jakso_sarake)","v":{"$error":"#VALUE!"}}]
[null,null,69,69,69,69,69,69,69,69,69,69,69,69,828,{"$f":"INDEX($C61:$O61,,Valittu_jakso_sarake)/INDEX($C$72:$O$72,,Valittu_jakso_sarake)","v":{"$error":"#VALUE!"}}]
[null,null,0,0,0,0,0,25,0,0,0,0,0,50,75,{"$f":"INDEX($C62:$O62,,Valittu_jakso_sarake)/INDEX($C$72:$O$72,,Valittu_jakso_sarake)","v":{"$error":"#VALUE!"}}]
[null,null,0,0,100,100,100,100,100,100,100,100,100,100,{"v":1000,"d":"1,000"},{"$f":"INDEX($C63:$O63,,Valittu_jakso_sarake)/INDEX($C$72:$O$72,,Valittu_jakso_sarake)","v":{"$error":"#VALUE!"}}]
[null,null,0,0,0,50,50,50,50,50,50,50,50,50,450,{"$f":"INDEX($C64:$O64,,Valittu_jakso_sarake)/INDEX($C$72:$O$72,,Valittu_jakso_sarake)","v":{"$error":"#VALUE!"}}]
[null,null,0,0,0,100,100,100,100,100,100,100,100,100,900,{"$f":"INDEX($C65:$O65,,Valittu_jakso_sarake)/INDEX($C$72:$O$72,,Valittu_jakso_sarake)","v":{"$error":"#VALUE!"}}]
[]
["Kirjoita kulukohde oikealla olevaan soluun ja kuukausittaiset summat soluihin C67–N70. Vuosittaiset summat lasketaan automaattisesti soluihin O67–O70 ja kasvu prosentteina soluihin P67–P70. Sparkline-kaavio päivittyy solussa Q67. Seuraava ohje on solussa A72.","Muut kulut",{"$f":"SUM(C68:C70)","v":198},{"$f":"SUM(D68:D70)","v":198},250,253,243,238,233,258,263,268,268,268,{"$f":"SUM(C67:N67)","v":{"v":2938,"d":"2,938"}},{"$f":"INDEX($C67:$O67,,Valittu_jakso_sarake)/INDEX($C$72:$O$72,,Valittu_jakso_sarake)","v":{"$error":"#VALUE!"}}]
[null,null,123,123,123,123,123,123,123,123,123,123,123,123,{"$f":"SUM(C68:N68)","v":{"v":1476,"d":"1,476"}},{"$f":"INDEX($C68:$O68,,Valittu_jakso_sarake)/INDEX($C$72:$O$72,,Valittu_jakso_sarake)","v":{"$error":"#VALUE!"}}]
[null,null,0,0,52,55,45,40,35,60,65,70,70,70,{"$f":"SUM(C69:N69)","v":562},{"$f":"INDEX($C69:$O69,,Valittu_jakso_sarake)/INDEX($C$72:$O$72,,Valittu_jakso_sarake)","v":{"$error":"#VALUE!"}}]
[null,null,75,75,75,75,75,75,75,75,75,75,75,75,{"$f":"SUM(C70:N70)","v":900},{"$f":"INDEX($C70:$O70,,Valittu_jakso_sarake)/INDEX($C$72:$O$72,,Valittu_jakso_sarake)","v":{"$error":"#VALUE!"}}]
[]
["Kokonaiskulut-selite on solussa oikealla. Kuukausittaisten kulujen kokonaissumma lasketaan soluihin C72–N72, vuosittaiset kulut soluun O72 ja kasvu prosentteina soluun P72. Sparkline-kaavio päivittyy solussa Q72.","KULUT YHTEENSÄ",{"$f":"SUM(C40,C45,C49,C53,C59,C67)","v":{"v":1056,"d":"1,056"}},{"v":1006,"d":"1,006"},{"v":2233,"d":"2,233"},{"v":1426,"d":"1,426"},{"v":1421,"d":"1,421"},{"v":2396,"d":"2,396"},{"v":1501,"d":"1,501"},{"v":1471,"d":"1,471"},{"v":2446,"d":"2,446"},{"v":1416,"d":"1,416"},{"v":1491,"d":"1,491"},{"v":1586,"d":"1,586"},{"$f":"SUM(C72:N72)","v":{"v":19449,"d":"19,449"}},{"$f":"INDEX($C72:$O72,,Valittu_jakso_sarake)/INDEX($C$72:$O$72,,Valittu_jakso_sarake)","v":{"$error":"#VALUE!"}}]

{"sheet":"kaavio_lask","index":2,"n_rows":23,"n_cols":16,"rows_kept":23,"hidden":true}
["***Tämän taulukon tulisi pysyä PIILOTETTUNA***"]
[]
[{"$nulls":3},{"$f":"IFERROR(LOWER(TEXT(VALUE(Valittu_jakso&\" 1\"),\"kkkk\")),\"vuosi\")","v":"vuosi"}]
[]
[{"$nulls":3},"Dynaamiset kaavion otsikot"]
[{"$nulls":3},{"$f":"D3&\" tulot:\"","v":"vuosi tulot:"},null,{"$f":"TEXT(INDEX('Kuukausitt. opiskelubudjetti'!$C$37:$O$37,,Valittu_jakso_sarake),\"# ### €\")","v":{"$error":"#VALUE!"}}]
[{"$nulls":3},{"$f":"D3&\" kulut:\"","v":"vuosi kulut:"},null,{"$f":"TEXT(INDEX('Kuukausitt. opiskelubudjetti'!$C$72:$O$72,,Valittu_jakso_sarake),\"# ### €\")","v":{"$error":"#VALUE!"}}]
[{"$nulls":3},{"$f":"D3&\" kassavirta:\"","v":"vuosi kassavirta:"},{"$f":"INDEX('Kuukausitt. opiskelubudjetti'!C28:O28,Vierityspalkki_arvo)","v":169},{"$f":"TEXT(E8,\"# ### €\")","v":"169 €"}]
[]
[]
[]
[{"$nulls":3},{"$f":"LOWER('Kuukausitt. opiskelubudjetti'!C27)","v":{"$error":"#VALUE!"}},{"$f":"LOWER('Kuukausitt. opiskelubudjetti'!D27)","v":{"$error":"#VALUE!"}},{"$f":"LOWER('Kuukausitt. opiskelubudjetti'!E27)","v":{"$error":"#VALUE!"}},{"$f":"LOWER('Kuukausitt. opiskelubudjetti'!F27)","v":{"$error":"#VALUE!"}},{"$f":"LOWER('Kuukausitt. opiskelubudjetti'!G27)","v":{"$error":"#VALUE!"}},{"$f":"LOWER('Kuukausitt. opiskelubudjetti'!H27)","v":{"$error":"#VALUE!"}},{"$f":"LOWER('Kuukausitt. opiskelubudjetti'!I27)","v":{"$error":"#VALUE!"}},{"$f":"LOWER('Kuukausitt. opiskelubudjetti'!J27)","v":{"$error":"#VALUE!"}},{"$f":"LOWER('Kuukausitt. opiskelubudjetti'!K27)","v":{"$error":"#VALUE!"}},{"$f":"LOWER('Kuukausitt. opiskelubudjetti'!L27)","v":{"$error":"#VALUE!"}},{"$f":"LOWER('Kuukausitt. opiskelubudjetti'!M27)","v":{"$error":"#VALUE!"}},{"$f":"LOWER('Kuukausitt. opiskelubudjetti'!N27)","v":{"$error":"#VALUE!"}},{"$f":"LOWER('Kuukausitt. opiskelubudjetti'!O27)","v":"vuosi  "}]
[null,null,"Vierityspalkin arvo: ",1]
[null,null,"Kassavirtakaavio: ",{"$f":"IF(Valittu_jakso='Kuukausitt. opiskelubudjetti'!C$31,IF('Kuukausitt. opiskelubudjetti'!$C$28:$O$28>=0,'Kuukausitt. opiskelubudjetti'!$C$28:$O$28,NA()),NA())","v":{"$error":"#VALUE!"}},{"$f":"IF(Valittu_jakso='Kuukausitt. opiskelubudjetti'!D$31,IF('Kuukausitt. opiskelubudjetti'!$C$28:$O$28>=0,'Kuukausitt. opiskelubudjetti'!$C$28:$O$28,NA()),NA())","v":{"$error":"#VALUE!"}},{"$f":"IF(Valittu_jakso='Kuukausitt. opiskelubudjetti'!E$31,IF('Kuukausitt. opiskelubudjetti'!$C$28:$O$28>=0,'Kuukausitt. opiskelubudjetti'!$C$28:$O$28,NA()),NA())","v":{"$error":"#VALUE!"}},{"$f":"IF(Valittu_jakso='Kuukausitt. opiskelubudjetti'!F$31,IF('Kuukausitt. opiskelubudjetti'!$C$28:$O$28>=0,'Kuukausitt. opiskelubudjetti'!$C$28:$O$28,NA()),NA())","v":{"$error":"#VALUE!"}},{"$f":"IF(Valittu_jakso='Kuukausitt. opiskelubudjetti'!G$31,IF('Kuukausitt. opiskelubudjetti'!$C$28:$O$28>=0,'Kuukausitt. opiskelubudjetti'!$C$28:$O$28,NA()),NA())","v":{"$error":"#VALUE!"}},{"$f":"IF(Valittu_jakso='Kuukausitt. opiskelubudjetti'!H$31,IF('Kuukausitt. opiskelubudjetti'!$C$28:$O$28>=0,'Kuukausitt. opiskelubudjetti'!$C$28:$O$28,NA()),NA())","v":{"$error":"#VALUE!"}},{"$f":"IF(Valittu_jakso='Kuukausitt. opiskelubudjetti'!I$31,IF('Kuukausitt. opiskelubudjetti'!$C$28:$O$28>=0,'Kuukausitt. opiskelubudjetti'!$C$28:$O$28,NA()),NA())","v":{"$error":"#VALUE!"}},{"$f":"IF(Valittu_jakso='Kuukausitt. opiskelubudjetti'!J$31,IF('Kuukausitt. opiskelubudjetti'!$C$28:$O$28>=0,'Kuukausitt. opiskelubudjetti'!$C$28:$O$28,NA()),NA())","v":{"$error":"#VALUE!"}},{"$f":"IF(Valittu_jakso='Kuukausitt. opiskelubudjetti'!K$31,IF('Kuukausitt. opiskelubudjetti'!$C$28:$O$28>=0,'Kuukausitt. opiskelubudjetti'!$C$28:$O$28,NA()),NA())","v":{"$error":"#VALUE!"}},{"$f":"IF(Valittu_jakso='Kuukausitt. opiskelubudjetti'!L$31,IF('Kuukausitt. opiskelubudjetti'!$C$28:$O$28>=0,'Kuukausitt. opiskelubudjetti'!$C$28:$O$28,NA()),NA())","v":{"$error":"#VALUE!"}},{"$f":"IF(Valittu_jakso='Kuukausitt. opiskelubudjetti'!M$31,IF('Kuukausitt. opiskelubudjetti'!$C$28:$O$28>=0,'Kuukausitt. opiskelubudjetti'!$C$28:$O$28,NA()),NA())","v":{"$error":"#VALUE!"}},{"$f":"IF(Valittu_jakso='Kuukausitt. opiskelubudjetti'!N$31,IF('Kuukausitt. opiskelubudjetti'!$C$28:$O$28>=0,'Kuukausitt. opiskelubudjetti'!$C$28:$O$28,NA()),NA())","v":{"$error":"#VALUE!"}},{"$f":"IF(Valittu_jakso='Kuukausitt. opiskelubudjetti'!O$31,IF('Kuukausitt. opiskelubudjetti'!$C$28:$O$28>=0,'Kuukausitt. opiskelubudjetti'!$C$28:$O$28,NA()),NA())","v":{"$error":"#VALUE!"}}]
[null,null,"Kumulatiivinen: ",{"$f":"IF(Valittu_jakso='Kuukausitt. opiskelubudjetti'!C$31,IF('Kuukausitt. opiskelubudjetti'!$C$28:$O$28<0,'Kuukausitt. opiskelubudjetti'!$C$28:$O$28,NA()),NA())","v":{"$error":"#VALUE!"}},{"$f":"IF(Valittu_jakso='Kuukausitt. opiskelubudjetti'!D$31,IF('Kuukausitt. opiskelubudjetti'!$C$28:$O$28<0,'Kuukausitt. opiskelubudjetti'!$C$28:$O$28,NA()),NA())","v":{"$error":"#VALUE!"}},{"$f":"IF(Valittu_jakso='Kuukausitt. opiskelubudjetti'!E$31,IF('Kuukausitt. opiskelubudjetti'!$C$28:$O$28<0,'Kuukausitt. opiskelubudjetti'!$C$28:$O$28,NA()),NA())","v":{"$error":"#VALUE!"}},{"$f":"IF(Valittu_jakso='Kuukausitt. opiskelubudjetti'!F$31,IF('Kuukausitt. opiskelubudjetti'!$C$28:$O$28<0,'Kuukausitt. opiskelubudjetti'!$C$28:$O$28,NA()),NA())","v":{"$error":"#VALUE!"}},{"$f":"IF(Valittu_jakso='Kuukausitt. opiskelubudjetti'!G$31,IF('Kuukausitt. opiskelubudjetti'!$C$28:$O$28<0,'Kuukausitt. opiskelubudjetti'!$C$28:$O$28,NA()),NA())","v":{"$error":"#VALUE!"}},{"$f":"IF(Valittu_jakso='Kuukausitt. opiskelubudjetti'!H$31,IF('Kuukausitt. opiskelubudjetti'!$C$28:$O$28<0,'Kuukausitt. opiskelubudjetti'!$C$28:$O$28,NA()),NA())","v":{"$error":"#VALUE!"}},{"$f":"IF(Valittu_jakso='Kuukausitt. opiskelubudjetti'!I$31,IF('Kuukausitt. opiskelubudjetti'!$C$28:$O$28<0,'Kuukausitt. opiskelubudjetti'!$C$28:$O$28,NA()),NA())","v":{"$error":"#VALUE!"}},{"$f":"IF(Valittu_jakso='Kuukausitt. opiskelubudjetti'!J$31,IF('Kuukausitt. opiskelubudjetti'!$C$28:$O$28<0,'Kuukausitt. opiskelubudjetti'!$C$28:$O$28,NA()),NA())","v":{"$error":"#VALUE!"}},{"$f":"IF(Valittu_jakso='Kuukausitt. opiskelubudjetti'!K$31,IF('Kuukausitt. opiskelubudjetti'!$C$28:$O$28<0,'Kuukausitt. opiskelubudjetti'!$C$28:$O$28,NA()),NA())","v":{"$error":"#VALUE!"}},{"$f":"IF(Valittu_jakso='Kuukausitt. opiskelubudjetti'!L$31,IF('Kuukausitt. opiskelubudjetti'!$C$28:$O$28<0,'Kuukausitt. opiskelubudjetti'!$C$28:$O$28,NA()),NA())","v":{"$error":"#VALUE!"}},{"$f":"IF(Valittu_jakso='Kuukausitt. opiskelubudjetti'!M$31,IF('Kuukausitt. opiskelubudjetti'!$C$28:$O$28<0,'Kuukausitt. opiskelubudjetti'!$C$28:$O$28,NA()),NA())","v":{"$error":"#VALUE!"}},{"$f":"IF(Valittu_jakso='Kuukausitt. opiskelubudjetti'!N$31,IF('Kuukausitt. opiskelubudjetti'!$C$28:$O$28<0,'Kuukausitt. opiskelubudjetti'!$C$28:$O$28,NA()),NA())","v":{"$error":"#VALUE!"}},{"$f":"IF(Valittu_jakso='Kuukausitt. opiskelubudjetti'!O$31,IF('Kuukausitt. opiskelubudjetti'!$C$28:$O$28<0,'Kuukausitt. opiskelubudjetti'!$C$28:$O$28,NA()),NA())","v":{"$error":"#VALUE!"}}]
[]
[]
[null,null,"TULOJEN KAAVIOTIEDOT"]
[null,null,"Sinulla maksettavat tuet (avustukset, apurahat, lainat)",{"$f":"'Kuukausitt. opiskelubudjetti'!P32","v":{"$error":"#VALUE!"}}]
[null,null,"Palkat työstä verojen jälkeen",{"$f":"'Kuukausitt. opiskelubudjetti'!P33","v":{"$error":"#VALUE!"}}]
[null,null,"Perheen antama taloudellinen tuki",{"$f":"'Kuukausitt. opiskelubudjetti'!P34","v":{"$error":"#VALUE!"}}]
[null,null,"Nostot säästöistä",{"$f":"'Kuukausitt. opiskelubudjetti'!P35","v":{"$error":"#VALUE!"}}]
[null,null,"Muut (lapsilisät, julkinen avustus, lahjat jne.)",{"$f":"'Kuukausitt. opiskelubudjetti'!P36","v":{"$error":"#VALUE!"}}]